fUST/lending_fUST_20250401
["ID","MTS","AMOUNT","RATE_DAILY","PERIOD"]
[356943387,1743468632868,-500.0,0.00021899,2]
[356943388,1743468632878,-71678.38305446,0.000219,2]
[356943389,1743468632890,-770.42925887,0.000219,2]
[356943390,1743468632901,-31155.82431275,0.000219,2]
[356943391,1743468632913,-352.02252764,0.000219,2]
[356943399,1743468638477,-474.2,0.00020679,15]
[356943400,1743468638486,-10461.77932901,0.000219,2]
[356943403,1743468640725,-481.0,0.00020679,15]
[356943404,1743468640735,-134012.14326872,0.000219,2]
[356943424,1743468646603,-1205.30963,0.00020679,15]
[356943425,1743468646614,-401.0,0.0002139,2]
[356943426,1743468646625,-500.0,0.00021899,2]
[356943427,1743468646635,-499.95,0.00021899,2]
[356943428,1743468646647,-70941.12778851,0.000219,2]
[356943429,1743468646657,-1049.49938797,0.000219,3]
[356943430,1743468646667,-150.0,0.00021917,2]
[356943431,1743468646678,-155.84749617,0.00021972,2]
[356943432,1743468646688,-363.06060668,0.00021972,3]
[356943433,1743468646698,-500.0,0.00021973,2]
[356943434,1743468646708,-500.0,0.00021973,2]
[356943435,1743468646719,-500.0,0.00021973,2]
[356943436,1743468646730,-500.0,0.00021973,2]
[356943437,1743468646740,-500.0,0.00021973,2]
[356943438,1743468646750,-500.0,0.00021973,2]
[356943439,1743468646760,-500.0,0.00021973,2]
[356943440,1743468646770,-500.0,0.00021973,2]
[356943441,1743468646781,-500.0,0.00021973,2]
[356943442,1743468646793,-500.0,0.00021973,2]
[356943443,1743468646803,-500.0,0.00021973,2]
[356943444,1743468646813,-500.0,0.00021973,2]
[356943445,1743468646824,-500.0,0.00021973,2]
[356943446,1743468646833,-1663.34101048,0.00022,3]
[356943447,1743468646843,-2501.13150541,0.00022,2]
[356943448,1743468646853,-364114.39112885,0.00022,14]
[356943449,1743468646863,-12579.54,0.00022,14]
[356943450,1743468646873,-37305.64,0.00022,14]
[356943451,1743468646883,-33052.76,0.00022,14]
[356943452,1743468646893,-1844.18,0.00022,7]
[356943453,1743468646903,-1773.4,0.00022,2]
[356943454,1743468646913,-2000.0,0.00022,2]
[356943455,1743468646923,-150.0,0.00022,7]
[356943456,1743468646932,-915.713697,0.00022007,2]
[356943457,1743468646942,-915.713697,0.00022007,2]
[356943458,1743468646952,-290.22889025,0.000221,2]
[356943459,1743468646962,-500.0,0.00022173,2]
[356943460,1743468646972,-500.0,0.00022173,2]
[356943461,1743468646982,-500.0,0.0002226,2]
[356943462,1743468646992,-500.0,0.00022447,2]
[356943463,1743468647001,-502.612769,0.00022447,2]
[356943464,1743468647011,-153.0,0.00022479,2]
[356943465,1743468647021,-153.0,0.00022479,2]
[356943466,1743468647033,-153.0,0.00022479,2]
[356943467,1743468647042,-153.0,0.00022479,2]
[356943468,1743468647052,-153.0,0.00022479,2]
[356943469,1743468647062,-153.0,0.00022479,2]
[356943470,1743468647071,-153.0,0.00022479,2]
[356943471,1743468647081,-192.0,0.0002248,2]
[356943472,1743468647091,-192.0,0.0002248,2]
[356943473,1743468647100,-192.0,0.0002248,2]
[356943474,1743468647110,-192.0,0.0002248,2]
[356943475,1743468647119,-192.0,0.0002248,2]
[356943476,1743468647129,-192.0,0.0002248,2]
[356943477,1743468647139,-192.0,0.0002248,2]
[356943478,1743468647148,-192.0,0.0002248,2]
[356943479,1743468647158,-192.0,0.0002248,2]
[356943480,1743468647167,-192.0,0.0002248,2]
[356943481,1743468647177,-192.0,0.0002248,2]
[356943482,1743468647187,-192.0,0.0002248,2]
[356943483,1743468647196,-192.0,0.0002248,2]
[356943484,1743468647206,-192.0,0.0002248,2]
[356943485,1743468647215,-153.0,0.00022483,2]
[356943486,1743468647225,-153.0,0.00022483,2]
[356943487,1743468647235,-153.0,0.00022483,2]
[356943488,1743468647245,-192.0,0.00022483,2]
[356943489,1743468647255,-1049.49938775,0.00022521,4]
[356943490,1743468647264,-150.0,0.000227,100]
[356943491,1743468647274,-500.0,0.00022721,2]
[356943492,1743468647284,-500.0,0.000228,2]
[356943493,1743468647294,-500.0,0.00022872,2]
[356943494,1743468647306,-500.0,0.00022995,2]
[356943495,1743468647316,-245.95343935,0.00023,2]
[356943496,1743468647326,-2000.0,0.00023,2]
[356943497,1743468647336,-2000.0,0.00023,2]
[356943498,1743468647346,-500.0,0.00023,2]
[356943499,1743468647356,-500.0,0.00023,2]
[356943500,1743468647366,-178.50393317,0.00023,2]
[356943501,1743468647376,-500.0,0.00023,2]
[356943502,1743468647387,-150.18,0.00023,2]
[356943503,1743468647397,-159.23873929,0.00023,2]
[356943504,1743468647407,-150.18,0.00023,2]
[356943505,1743468647416,-150.54405372,0.00023,2]
[356943506,1743468647426,-500.0,0.00023,2]
[356943507,1743468647436,-150.18,0.00023,2]
[356943508,1743468647446,-150.18,0.00023,2]
[356943509,1743468647455,-199.83293275,0.00023,2]
[356943510,1743468647465,-150.18,0.00023,2]
[356943511,1743468647475,-154.0,0.00023,2]
[356943512,1743468647485,-500.0,0.00023,2]
[356943513,1743468647496,-500.0,0.00023,2]
[356943514,1743468647506,-150.18,0.00023,2]
[356943515,1743468647515,-150.73716367,0.00023,2]
[356943516,1743468647525,-500.0,0.00023,2]
[356943517,1743468647535,-427.0,0.00023,2]
[356943518,1743468647545,-150.18,0.00023,2]
[356943519,1743468647555,-150.68008027,0.00023,2]
[356943520,1743468647564,-300.0,0.00023062,2]
[356943521,1743468647574,-1000.0,0.00023062,2]
[356943522,1743468647584,-500.0,0.00023137,2]
[356943523,1743468647594,-170.34491696,0.00023137,2]
[356943524,1743468647607,-246.77317386,0.00023137,2]
[356943525,1743468647617,-775.74411914,0.00023137,2]
[356943526,1743468647626,-150.18,0.00023137,2]
[356943527,1743468647636,-150.18,0.00023137,2]
[356943528,1743468647646,-150.18,0.00023137,2]
[356943529,1743468647656,-500.0,0.00023137,2]
[356943530,1743468647666,-500.0,0.00023137,2]
[356943531,1743468647676,-150.18,0.00023137,2]
[356943532,1743468647686,-500.0,0.00023137,2]
[356943533,1743468647696,-1049.49938775,0.00023141,4]
[356943534,1743468647706,-207.4,0.00023256,2]
[356943535,1743468647716,-26223.4234935,0.00023265,2]
[356943536,1743468647726,-915.713697,0.00023265,2]
[356943537,1743468647735,-915.713697,0.00023265,2]
[356943538,1743468647745,-500.0,0.00023274,2]
[356943539,1743468647755,-201.42297628,0.00023274,2]
[356943540,1743468647764,-202.55003454,0.00023274,2]
[356943541,1743468647774,-199.64,0.00023274,2]
[356943542,1743468647785,-500.0,0.00023274,2]
[356943543,1743468647795,-500.0,0.00023274,2]
[356943544,1743468647805,-202.48475531,0.00023274,2]
[356943545,1743468647815,-500.0,0.00023274,2]
[356943546,1743468647824,-150.0,0.00023287,2]
[356943547,1743468647834,-427.0,0.00023288,2]
[356943548,1743468647844,-500.0,0.00023341,2]
[356943549,1743468647854,-500.0,0.00023341,2]
[356943550,1743468647864,-500.0,0.00023341,2]
[356943551,1743468647875,-500.0,0.00023341,2]
[356943552,1743468647885,-500.0,0.00023341,2]
[356943553,1743468647895,-500.0,0.00023341,2]
[356943554,1743468647904,-500.0,0.00023341,2]
[356943555,1743468647914,-500.0,0.00023341,2]
[356943556,1743468647924,-500.0,0.00023341,2]
[356943557,1743468647934,-500.0,0.00023341,2]
[356943558,1743468647943,-500.0,0.00023341,2]
[356943559,1743468647953,-500.0,0.00023341,2]
[356943560,1743468647964,-500.0,0.00023341,2]
[356943561,1743468647974,-500.0,0.00023341,2]
[356943562,1743468647984,-500.0,0.00023356,2]
[356943563,1743468647994,-150.0,0.0002338,2]
[356943564,1743468648004,-626.05666413,0.00023411,2]
[356943565,1743468648014,-588.43724042,0.00023411,2]
[356943566,1743468648024,-500.0,0.00023411,2]
[356943567,1743468648034,-656.88289297,0.00023411,2]
[356943568,1743468648044,-500.0,0.00023453,2]
[356943569,1743468648053,-500.0,0.00023473,2]
[356943570,1743468648063,-500.0,0.00023473,2]
[356943571,1743468648073,-500.0,0.00023473,2]
[356943572,1743468648082,-500.0,0.00023473,2]
[356943573,1743468648092,-500.0,0.00023473,2]
[356943574,1743468648102,-500.0,0.00023473,2]
[356943575,1743468648113,-314.18932184,0.00023473,2]
[356943576,1743468648123,-500.0,0.00023473,2]
[356943577,1743468648133,-500.0,0.00023473,2]
[356943578,1743468648143,-500.0,0.00023473,2]
[356943579,1743468648153,-500.0,0.00023473,2]
[356943580,1743468648163,-22500.90057216,0.000235,14]
[356943586,1743468821844,-341.78,0.00020747,15]
[356943631,1743469838907,-150.0,0.00016,2]
[356943633,1743469838918,-122.08,0.00019624,4]
[356943636,1743469838930,-53.92,0.00019624,4]
[356943637,1743469838940,-152.04226178,0.000199,2]
[356943639,1743469838950,-152.04226179,0.000199,2]
[356943640,1743469838960,-160.0,0.00020516,3]
[356943641,1743469838971,-160.0,0.00020737,4]
[356943642,1743469838981,-160.0,0.00020737,5]
[356943643,1743469838991,-544.02460137,0.00020747,15]
[356943644,1743469839003,-138.37056363,0.00020747,15]
[356943645,1743469839013,-150.0,0.00020812,4]
[356943646,1743469839024,-126.1738152,0.00020988,2]
[356943647,1743469839041,-1143.24225696,0.00020988,2]
[356943648,1743469839059,-300.0,0.00020999,2]
[356943649,1743469839069,-566.31,0.00021,2]
[356943650,1743469839079,-35.44530288,0.00021,2]
[356943658,1743469841931,-1856.84192456,0.00021,2]
[356943659,1743469841996,-1107.71277256,0.00021,2]
[356943660,1743469842006,-3000.0,0.0002101,2]
[356943661,1743469842016,-3000.0,0.0002102,2]
[356943662,1743469842026,-3000.0,0.0002103,2]
[356943663,1743469842035,-3000.0,0.0002104,2]
[356943664,1743469842045,-3000.0,0.0002105,2]
[356943665,1743469842056,-1558.78722744,0.0002106,2]
[356943666,1743469842068,-420.87043536,0.0002106,2]
[356943667,1743469842079,-1020.3423372,0.0002106,2]
[356943668,1743469842088,-317.20747418,0.0002107,2]
[356943686,1743469843811,-0.00722637,0.0002107,2]
[356943692,1743469846676,-509.68,0.00021,2]
[356943693,1743469846687,-2682.78529945,0.0002107,2]
[356943694,1743469846697,-3000.0,0.0002108,2]
[356943695,1743469846708,-500.0,0.00021086,2]
[356943696,1743469846718,-500.0,0.00021086,2]
[356943697,1743469846728,-201.22325316,0.00021086,2]
[356943698,1743469846738,-500.0,0.00021086,2]
[356943699,1743469846750,-500.0,0.00021086,2]
[356943700,1743469846760,-500.0,0.00021086,2]
[356943701,1743469846770,-215.76997754,0.00021086,2]
[356943702,1743469846780,-500.0,0.00021086,2]
[356943703,1743469846789,-500.0,0.00021086,2]
[356943704,1743469846799,-500.0,0.00021086,2]
[356943705,1743469846811,-500.0,0.00021086,2]
[356943706,1743469846821,-500.0,0.00021086,2]
[356943707,1743469846831,-500.0,0.00021086,2]
[356943708,1743469846842,-500.0,0.00021086,2]
[356943709,1743469846854,-500.0,0.00021086,2]
[356943710,1743469846864,-500.0,0.00021086,2]
[356943711,1743469846874,-500.0,0.00021086,2]
[356943712,1743469846884,-500.0,0.00021086,2]
[356943713,1743469846894,-500.0,0.00021086,2]
[356943714,1743469846905,-500.0,0.00021086,2]
[356943715,1743469846916,-500.0,0.00021086,2]
[356943716,1743469846926,-500.0,0.00021086,2]
[356943717,1743469846938,-500.0,0.00021086,2]
[356943718,1743469846953,-500.0,0.00021086,2]
[356943719,1743469846963,-500.0,0.00021086,2]
[356943720,1743469846973,-500.0,0.00021086,2]
[356943721,1743469846984,-500.0,0.00021086,2]
[356943722,1743469846994,-500.0,0.00021086,2]
[356943723,1743469847006,-500.0,0.00021086,2]
[356943724,1743469847017,-500.0,0.00021086,2]
[356943725,1743469847028,-500.0,0.00021086,2]
[356943726,1743469847038,-500.0,0.00021086,2]
[356943727,1743469847049,-500.0,0.00021086,2]
[356943728,1743469847059,-500.0,0.00021086,2]
[356943729,1743469847069,-500.0,0.00021086,2]
[356943730,1743469847079,-500.0,0.00021086,2]
[356943731,1743469847090,-500.0,0.00021086,2]
[356943732,1743469847100,-500.0,0.00021086,2]
[356943733,1743469847111,-568.45795417,0.00021086,2]
[356943734,1743469847122,-500.0,0.00021086,2]
[356943735,1743469847133,-500.0,0.00021086,2]
[356943736,1743469847145,-410.38701766,0.00021086,2]
[356943737,1743469847156,-500.0,0.00021086,2]
[356943738,1743469847167,-500.0,0.00021086,2]
[356943739,1743469847178,-500.0,0.00021086,2]
[356943740,1743469847190,-500.0,0.00021086,2]
[356943741,1743469847202,-500.0,0.00021086,2]
[356943742,1743469847212,-500.0,0.00021086,2]
[356943743,1743469847222,-500.0,0.00021086,2]
[356943744,1743469847232,-500.0,0.00021086,2]
[356943745,1743469847243,-500.0,0.00021086,2]
[356943746,1743469847253,-3000.0,0.0002109,2]
[356943747,1743469847262,-3000.0,0.000211,2]
[356943748,1743469847272,-200.0,0.00021104,2]
[356943749,1743469847282,-1915.64862226,0.0002111,2]
[356943750,1743469847305,-1084.35137774,0.0002111,2]
[356943751,1743469847315,-3000.0,0.0002112,2]
[356943752,1743469847324,-3000.0,0.0002113,2]
[356943753,1743469847334,-3000.0,0.0002114,2]
[356943754,1743469847346,-3000.0,0.0002115,2]
[356943755,1743469847355,-3000.0,0.0002116,2]
[356943756,1743469847365,-500.0,0.00021164,2]
[356943757,1743469847375,-3000.0,0.0002117,2]
[356943758,1743469847384,-360.55281788,0.00021179,2]
[356943759,1743469847394,-3000.0,0.0002118,2]
[356943760,1743469847406,-3000.0,0.0002119,2]
[356943761,1743469847416,-3000.0,0.000212,2]
[356943762,1743469847426,-3000.0,0.0002121,2]
[356943763,1743469847435,-1133.79580439,0.0002122,2]
[356943842,1743471032103,-150.0,0.00019232,2]
[356943843,1743471032113,-150.0,0.0001954,2]
[356943844,1743471032124,-150.0,0.00019911,2]
[356943845,1743471032133,-299.999999,0.0001999,2]
[356943846,1743471032143,-150.0,0.00020056,2]
[356943847,1743471032153,-150.0,0.00020393,2]
[356943848,1743471032162,-2885.61581829,0.00020781,3]
[356943849,1743471032174,-675.32761271,0.00020781,3]
[356943850,1743471032184,-191.18630469,0.00020805,2]
[356943851,1743471032193,-1350.53540754,0.000209,3]
[356943852,1743471032203,-160.0,0.0002091,2]
[356943853,1743471032212,-835.65699134,0.00020937,2]
[356943854,1743471032221,-449.000001,0.00020978,2]
[356943855,1743471032231,-300.0,0.00020999,2]
[356943856,1743471032240,-500.0,0.00021,30]
[356943857,1743471032250,-500.0,0.00021,30]
[356943858,1743471032259,-2468.78966801,0.00021,2]
[356943859,1743471032268,-500.0,0.00021,30]
[356943860,1743471032278,-500.0,0.00021,30]
[356943861,1743471032288,-500.0,0.00021,30]
[356943862,1743471032298,-500.0,0.00021,30]
[356943863,1743471032307,-500.0,0.00021,30]
[356943864,1743471032318,-500.0,0.00021,30]
[356943865,1743471032435,-500.0,0.00021,30]
[356943866,1743471032477,-500.0,0.00021,30]
[356943867,1743471032487,-500.0,0.00021,30]
[356943868,1743471032497,-500.0,0.00021,30]
[356943869,1743471032507,-500.0,0.00021,30]
[356943870,1743471032516,-500.0,0.00021,2]
[356943871,1743471032526,-200.0,0.00021036,2]
[356943872,1743471032537,-500.0,0.00021048,2]
[356943873,1743471032547,-500.0,0.00021048,2]
[356943874,1743471032557,-500.0,0.00021048,2]
[356943875,1743471032567,-500.0,0.00021048,2]
[356943876,1743471032577,-378.93189085,0.00021048,2]
[356943877,1743471032586,-285.38421713,0.00021048,2]
[356943878,1743471032596,-651.19085857,0.00021048,2]
[356943879,1743471032605,-500.0,0.00021048,2]
[356943880,1743471032615,-500.0,0.00021048,2]
[356943881,1743471032624,-500.0,0.00021048,2]
[356943882,1743471032634,-500.0,0.00021048,2]
[356943883,1743471032643,-300.0,0.00021048,2]
[356943884,1743471032653,-182.8945734,0.00021048,2]
[356943885,1743471032662,-283.45475234,0.00021048,2]
[356943886,1743471032671,-564.07,0.00021048,2]
[356943887,1743471032681,-550.4365385,0.00021048,2]
[356943888,1743471032690,-175.95252702,0.00021048,2]
[356943889,1743471032700,-500.0,0.00021049,2]
[356943890,1743471032710,-500.0,0.00021049,2]
[356943891,1743471032719,-500.0,0.00021049,2]
[356943892,1743471032728,-500.0,0.00021049,2]
[356943893,1743471032738,-270.55074254,0.00021049,2]
[356943894,1743471032748,-500.0,0.00021049,2]
[356943895,1743471032757,-500.0,0.00021049,2]
[356943896,1743471032766,-500.6350019,0.00021049,2]
[356943897,1743471032776,-500.0,0.00021049,2]
[356943898,1743471032785,-500.0,0.00021049,2]
[356943899,1743471032795,-500.0,0.00021049,2]
[356943900,1743471032805,-500.0,0.00021049,2]
[356943901,1743471032815,-500.0,0.00021049,2]
[356943902,1743471032824,-500.0,0.00021049,2]
[356943903,1743471032834,-500.0,0.00021049,2]
[356943904,1743471032844,-500.0,0.00021049,2]
[356943905,1743471032854,-500.0,0.00021049,2]
[356943906,1743471032863,-500.0,0.00021049,2]
[356943907,1743471032873,-500.0,0.00021049,2]
[356943908,1743471032883,-500.0,0.00021049,2]
[356943909,1743471032893,-500.0,0.00021049,2]
[356943910,1743471032903,-500.0,0.00021049,2]
[356943911,1743471032912,-500.0,0.00021049,2]
[356943912,1743471032922,-500.0,0.00021049,2]
[356943913,1743471032932,-500.0,0.00021049,2]
[356943914,1743471032941,-500.0,0.00021049,2]
[356943915,1743471032950,-532.00275541,0.00021049,2]
[356943916,1743471032960,-500.0,0.00021049,2]
[356943917,1743471032970,-500.0,0.00021049,2]
[356943918,1743471032979,-500.0,0.00021049,2]
[356943919,1743471032989,-500.0,0.00021049,2]
[356943920,1743471032998,-500.0,0.00021049,2]
[356943921,1743471033010,-500.0,0.00021049,2]
[356943922,1743471033019,-500.0,0.00021049,2]
[356943923,1743471033031,-500.0,0.00021049,2]
[356943924,1743471033041,-500.0,0.00021049,2]
[356943925,1743471033051,-303.98919117,0.00021049,2]
[356944022,1743471040274,-196.01080883,0.00021049,2]
[356944024,1743471040285,-134.98919117,0.00021049,2]
[356944222,1743471045908,-246.47694134,0.00021048,2]
[356944223,1743471045919,-365.01080883,0.00021049,2]
[356944224,1743471045930,-500.0,0.00021049,2]
[356944225,1743471045939,-500.0,0.00021049,2]
[356944226,1743471045949,-500.0,0.00021049,2]
[356944227,1743471045959,-500.0,0.00021049,2]
[356944228,1743471045969,-411.41046555,0.00021049,2]
[356944229,1743471045979,-500.0,0.00021049,2]
[356944230,1743471045989,-500.0,0.00021049,2]
[356944231,1743471045999,-500.0,0.00021049,2]
[356944232,1743471046011,-500.0,0.00021049,2]
[356944233,1743471046022,-500.0,0.00021058,2]
[356944234,1743471046033,-500.0,0.00021058,2]
[356944235,1743471046044,-500.0,0.00021058,2]
[356944236,1743471046055,-500.0,0.00021058,2]
[356944237,1743471046067,-500.0,0.00021058,2]
[356944238,1743471046077,-500.0,0.00021058,2]
[356944239,1743471046088,-500.0,0.00021058,2]
[356944240,1743471046098,-604.13,0.00021058,2]
[356944241,1743471046110,-504.63,0.00021058,2]
[356944242,1743471046119,-500.0,0.00021058,2]
[356944243,1743471046130,-500.0,0.00021058,2]
[356944244,1743471046139,-500.0,0.00021058,2]
[356944245,1743471046150,-500.0,0.00021058,2]
[356944246,1743471046160,-500.0,0.00021058,2]
[356944247,1743471046170,-500.0,0.00021058,2]
[356944248,1743471046180,-500.0,0.00021058,2]
[356944249,1743471046191,-500.0,0.00021058,2]
[356944250,1743471046201,-500.0,0.00021058,2]
[356944251,1743471046212,-3560.943431,0.00021059,2]
[356944252,1743471046222,-458.71,0.000211,2]
[356944253,1743471046232,-1000.0,0.000211,2]
[356944254,1743471046242,-1000.0,0.000211,3]
[356944255,1743471046252,-500.0,0.00021164,2]
[356944256,1743471046263,-1866.20419561,0.0002122,2]
[356944257,1743471046273,-13.38016496,0.0002123,2]
[356944258,1743471046289,-2986.61983504,0.0002123,2]
[356944259,1743471046299,-4122.23987,0.0002124,2]
[356944260,1743471046310,-564.07,0.00021322,2]
[356944261,1743471046319,-500.0,0.00021332,2]
[356944262,1743471046330,-1350.53540735,0.00021555,3]
[356944263,1743471046340,-564.07,0.00021596,2]
[356944264,1743471046350,-500.0,0.00021606,2]
[356944265,1743471046360,-501.41748333,0.00021673,2]
[356944266,1743471046370,-500.0,0.00021673,2]
[356944267,1743471046380,-500.0,0.00021673,2]
[356944268,1743471046390,-500.0,0.00021673,2]
[356944269,1743471046400,-500.0,0.00021673,2]
[356944270,1743471046410,-500.0,0.00021673,2]
[356944271,1743471046419,-500.0,0.00021673,2]
[356944272,1743471046429,-500.0,0.00021673,2]
[356944273,1743471046439,-500.0,0.00021673,2]
[356944274,1743471046448,-382.33681946,0.00021673,2]
[356944275,1743471046461,-117.66318054,0.00021673,2]
[356944276,1743471046471,-500.0,0.00021673,2]
[356944277,1743471046480,-500.0,0.00021673,2]
[356944278,1743471046490,-500.0,0.00021673,2]
[356944279,1743471046499,-500.0,0.00021673,2]
[356944280,1743471046509,-500.0,0.00021673,2]
[356944281,1743471046519,-500.0,0.00021673,2]
[356944282,1743471046528,-500.0,0.00021673,2]
[356944283,1743471046538,-218.5,0.0002169,3]
[356944284,1743471046547,-252.38697252,0.00021699,2]
[356944285,1743471046557,-1278.75139344,0.000217,3]
[356944542,1743473419456,1929.0,0.00014,2]
[356944570,1743473432211,-447.24950102,0.00019696,3]
[356944571,1743473432221,-2240.23960336,0.00019696,3]
[356944572,1743473432230,-158.3432341,0.00019892,2]
[356944573,1743473432240,-3521.119464,0.00020781,3]
[356944574,1743473432250,-418.85542,0.0002082,2]
[356944575,1743473432260,-835.65699134,0.0002082,2]
[356944576,1743473432270,-1827.01752788,0.00020826,2]
[356944577,1743473432279,-160.0,0.00020832,2]
[356944578,1743473432290,-300.0,0.00020832,2]
[356944579,1743473432299,-633.33939971,0.00020873,2]
[356944580,1743473432315,-648.18699746,0.00020873,2]
[356944581,1743473432324,-1415.43407661,0.000209,3]
[356944582,1743473432334,-151.0,0.00020933,2]
[356944583,1743473432343,-200.0,0.00020933,2]
[356944584,1743473432354,-500.0,0.00020944,2]
[356944585,1743473432363,-569.71,0.00020944,2]
[356944586,1743473432372,-500.0,0.00020944,2]
[356944587,1743473432383,-500.0,0.00020944,2]
[356944588,1743473432393,-500.0,0.00020944,2]
[356944589,1743473432403,-500.0,0.00020944,2]
[356944590,1743473432413,-500.0,0.00020944,2]
[356944592,1743473432422,-369.29933333,0.00020945,2]
[356944682,1743474632538,-2321.51263284,0.00016,2]
[356944685,1743474632552,-569.53736716,0.00016,2]
[356944686,1743474632563,-1619.3,0.00017,120]
[356944687,1743474632572,-160.493999,0.00020365,3]
[356944688,1743474632582,-160.0,0.0002071,2]
[356944689,1743474632591,-1121.33559755,0.00020761,2]
[356944690,1743474632601,-3403.748815,0.00020781,3]
[356944692,1743474632611,-790.54,0.00020834,3]
[356944694,1743474632620,-300.0,0.00020841,2]
[356944695,1743474632629,-517.02391672,0.00020842,2]
[356944696,1743474632639,-545.97,0.00020842,2]
[356944697,1743474632648,-500.0,0.00020842,2]
[356944698,1743474632657,-500.0,0.00020842,2]
[356944699,1743474632668,-239.17349145,0.00020842,2]
[356944700,1743474632680,-403.87407437,0.00020842,2]
[356944702,1743474632689,-508.19187793,0.00020842,2]
[356944703,1743474632701,-500.0,0.00020842,2]
[356944704,1743474632711,-508.37261314,0.00020842,2]
[356944705,1743474632721,-500.0,0.00020842,2]
[356944706,1743474632731,-510.25288573,0.00020842,2]
[356944707,1743474632741,-500.0,0.00020842,2]
[356944708,1743474632751,-509.13838631,0.00020842,2]
[356944709,1743474632762,-500.0,0.00020842,2]
[356944710,1743474632771,-500.0,0.00020842,2]
[356944711,1743474632781,-513.75874347,0.00020842,2]
[356944712,1743474632790,-500.0,0.00020842,2]
[356944713,1743474632800,-500.0,0.00020842,2]
[356944714,1743474632810,-500.0,0.00020842,2]
[356944715,1743474632820,-500.0,0.00020842,2]
[356944716,1743474632830,-770.60397135,0.00020842,3]
[356944717,1743474632841,-4191.40261663,0.00020843,3]
[356944718,1743474632852,-418.94013069,0.00020843,2]
[356944719,1743474632862,-12458.93820146,0.00020843,2]
[356944720,1743474632872,-500.0,0.00020843,2]
[356944721,1743474632881,-506.693887,0.00020843,2]
[356944722,1743474632891,-500.0,0.00020843,2]
[356944723,1743474632901,-500.0,0.00020843,2]
[356944724,1743474632912,-500.0,0.00020843,2]
[356944725,1743474632922,-505.76155743,0.00020843,2]
[356944726,1743474632931,-500.0,0.00020843,2]
[356944727,1743474632941,-500.0,0.00020843,2]
[356944728,1743474632951,-500.0,0.00020843,2]
[356944729,1743474632960,-500.0,0.00020843,2]
[356944730,1743474632970,-500.0,0.00020843,2]
[356944731,1743474632979,-500.0,0.00020843,2]
[356944732,1743474632988,-500.0,0.00020843,2]
[356944733,1743474632998,-500.0,0.00020843,2]
[356944734,1743474633009,-500.0,0.00020843,2]
[356944735,1743474633018,-500.0,0.00020843,2]
[356944736,1743474633028,-537.42,0.00020843,2]
[356944737,1743474633038,-500.0,0.00020843,2]
[356944738,1743474633047,-500.0,0.00020843,2]
[356944739,1743474633057,-500.0,0.00020843,2]
[356944740,1743474633066,-500.0,0.00020843,2]
[356944741,1743474633075,-500.0,0.00020843,2]
[356944742,1743474633085,-500.0,0.00020843,2]
[356944743,1743474633094,-500.0,0.00020843,2]
[356944744,1743474633106,-500.0,0.00020843,2]
[356944745,1743474633116,-500.0,0.00020843,2]
[356944746,1743474633125,-332.464937,0.00020843,2]